fUSD/lending_fUSD_20250905
["ID","MTS","AMOUNT","RATE_DAILY","PERIOD"]
[383767815,1757109261767,-400.0,0.00041095,120]
[383767816,1757109261776,-434.97,0.00041095,120]
[383767817,1757109261785,-400.0,0.00041095,120]
[383767818,1757109261795,-547.22,0.00041095,120]
[383767819,1757109261804,-400.0,0.00041095,120]
[383767820,1757109261813,-9387.3,0.00041095,120]
[383767821,1757109261823,-438.16,0.00041095,120]
[383767822,1757109261832,-400.44,0.00041095,120]
[383767823,1757109261841,-506.66,0.00041095,120]
[383767824,1757109261851,-467.62,0.00041095,120]
[383767825,1757109261860,-152.1,0.00041095,120]
[383767826,1757109261869,-422.62,0.00041095,120]
[383767827,1757109261879,-406.5,0.00041095,120]
[383767828,1757109261888,-773.54,0.00041095,120]
[383767829,1757109261897,-765.31,0.00041095,120]
[383767830,1757109261906,-401.2,0.00041095,120]
[383767831,1757109261916,-417.09,0.00041095,120]
[383767832,1757109261925,-441.78,0.00041095,120]
[383767833,1757109261935,-172.38097509,0.00041095,120]
[383767834,1757109261944,-553.83,0.00041095,120]
[383767835,1757109261954,-546.26,0.00041095,120]
[383767836,1757109261963,-400.0,0.00041095,120]
[383767837,1757109261973,-441.15,0.00041095,120]
[383767838,1757109261982,-785.59,0.00041095,120]
[383767839,1757109261991,-437.91,0.00041095,120]
[383767840,1757109262002,-447.37,0.00041095,120]
[383767841,1757109262011,-632.37,0.00041095,120]
[383767842,1757109262021,-414.4,0.00041095,120]
[383767843,1757109262030,-981.06,0.00041095,120]
[383767844,1757109262039,-319.29506078,0.00041095,120]
[383767845,1757109262048,-569.2,0.00041095,120]
[383767846,1757109262058,-542.91,0.00041095,120]
[383767847,1757109262067,-414.08,0.00041095,120]
[383767848,1757109262076,-420.85,0.00041095,120]
[383767849,1757109262085,-1444.34,0.00041095,120]
[383767850,1757109262094,-2516.87,0.00041095,120]
[383767851,1757109262103,-441.96,0.00041095,120]
[383767852,1757109262112,-487.97,0.00041095,120]
[383767853,1757109262121,-586.94,0.00041095,120]
[383767854,1757109262130,-626.89,0.00041095,120]
[383767855,1757109262139,-447.68,0.00041095,120]
[383767856,1757109262148,-2345.08,0.00041095,120]
[383767857,1757109262157,-498.12,0.00041095,120]
[383767858,1757109262166,-431.29,0.00041095,120]
[383767859,1757109262176,-448.78,0.00041095,120]
[383767860,1757109262185,-185.13515677,0.00041095,120]
[383767861,1757109262195,-562.67,0.00041095,120]
[383767862,1757109262205,-475.22,0.00041095,120]
[383767863,1757109262214,-576.12,0.00041095,120]
[383767864,1757109262223,-459.73,0.00041095,120]
[383767865,1757109262232,-400.0,0.00041095,120]
[383767866,1757109262242,-546.92,0.00041095,120]
[383767867,1757109262251,-400.0,0.00041095,2]
[383767868,1757109262260,-543.53,0.00041095,120]
[383767869,1757109262271,-495.5,0.00041095,120]
[383767870,1757109262280,-584.47,0.00041095,120]
[383767871,1757109262289,-551.73,0.00041095,120]
[383767872,1757109262298,-196.32,0.00041095,120]
[383767873,1757109262307,-445.12,0.00041095,120]
[383767874,1757109262318,-400.0,0.00041095,120]
[383767875,1757109262327,-618.31,0.00041095,120]
[383767876,1757109262336,-2141.03,0.00041095,120]
[383767877,1757109262345,-582.55,0.00041095,120]
[383767878,1757109262354,-502.39,0.00041095,120]
[383767879,1757109262363,-494.68,0.00041095,120]
[383767880,1757109262372,-884.72,0.00041095,120]
[383767881,1757109262382,-492.2,0.00041095,120]
[383767882,1757109262391,-590.75,0.00041095,120]
[383767883,1757109262400,-434.34,0.00041095,120]
[383767884,1757109262409,-400.0,0.00041095,120]
[383767885,1757109262418,-423.04,0.00041095,120]
[383767886,1757109262427,-232.81075878,0.00041095,120]
[383767887,1757109262436,-474.82,0.00041095,120]
[383767888,1757109262445,-473.5917205,0.00041095,120]
[383767889,1757109262455,-400.0,0.00041095,120]
[383767890,1757109262464,-505.91472013,0.00041095,120]
[383767891,1757109262473,-1028.14,0.00041095,120]
[383767892,1757109262482,-2757.36,0.00041095,120]
[383767893,1757109262491,-404.16,0.00041095,120]
[383767894,1757109262501,-701.4,0.00041095,120]
[383767895,1757109262510,-696.57,0.00041095,120]
[383767896,1757109262520,-400.0,0.00041095,120]
[383767897,1757109262530,-438.53,0.00041095,120]
[383767898,1757109262539,-766.81,0.00041095,120]
[383767899,1757109262548,-400.0,0.00041095,120]
[383767900,1757109262557,-480.98,0.00041095,120]
[383767901,1757109262567,-400.0,0.00041095,120]
[383767902,1757109262576,-425.95,0.00041095,120]
[383767903,1757109262585,-400.0,0.00041095,120]
[383767904,1757109262595,-400.0,0.00041095,120]
[383767905,1757109262604,-443.56,0.00041095,120]
[383767906,1757109262613,-400.0,0.00041095,120]
[383767907,1757109262633,-501.99,0.00041095,120]
[383767908,1757109262643,-441.78,0.00041095,120]
[383767909,1757109262652,-545.84,0.00041095,120]
[383767910,1757109262662,-439.9,0.00041095,120]
[383767911,1757109262672,-545.23,0.00041095,120]
[383767912,1757109262681,-405.11,0.00041095,120]
[383767913,1757109262691,-413.96,0.00041095,120]
[383767914,1757109262700,-470.74,0.00041095,120]
[383767915,1757109262710,-163.9264,0.00041095,120]
[383767916,1757109262720,-1154.65,0.00041095,120]
[383767917,1757109262729,-3534.15,0.00041095,120]
[383767918,1757109262739,-491.97270145,0.00041095,120]
[383767919,1757109262749,-466.43,0.00041095,120]
[383767920,1757109262759,-552.13,0.00041095,120]
[383767921,1757109262770,-486.3,0.00041095,120]
[383767922,1757109262781,-529.91,0.00041095,120]
[383767923,1757109262791,-524.16,0.00041095,120]
[383767924,1757109262801,-400.0,0.00041095,120]
[383767925,1757109262811,-836.63,0.00041095,120]
[383767926,1757109262821,-647.19,0.00041095,120]
[383767927,1757109262831,-400.0,0.00041095,120]
[383767928,1757109262840,-531.26,0.00041095,120]
[383767929,1757109262850,-690.4,0.00041095,120]
[383767930,1757109262861,-331.12108338,0.00041095,120]
[383767931,1757109262870,-508.58,0.00041095,120]
[383767932,1757109262880,-424.68,0.00041095,120]
[383767933,1757109262890,-1608.94,0.00041095,90]
[383767934,1757109262900,-496.78,0.00041095,120]
[383767935,1757109262910,-414.05,0.00041095,120]
[383767936,1757109262920,-400.0,0.00041095,120]
[383767937,1757109262930,-192.69181364,0.00041095,120]
[383767938,1757109262940,-983.85,0.00041095,120]
[383767939,1757109262950,-522.3,0.00041095,120]
[383767940,1757109262959,-2782.91,0.00041095,120]
[383767941,1757109262968,-650.54,0.00041095,120]
[383767942,1757109262978,-1361.26,0.00041095,120]
[383767943,1757109262987,-436.1,0.00041095,120]
[383767944,1757109262996,-400.0,0.00041095,120]
[383767945,1757109263011,-649.0,0.00041095,120]
[383767946,1757109263021,-400.0,0.00041095,120]
[383767947,1757109263030,-442.27,0.00041095,120]
[383767948,1757109263039,-474.21,0.00041095,120]
[383767949,1757109263049,-171.79660745,0.00041095,120]
[383767950,1757109263058,-603.16,0.00041095,120]
[383767951,1757109263067,-407.14,0.00041095,120]
[383767952,1757109263076,-8442.03,0.00041095,120]
[383767953,1757109263086,-621.71,0.00041095,120]
[383767954,1757109263095,-436.72,0.00041095,120]
[383767955,1757109263104,-443.36,0.00041095,120]
[383767956,1757109263113,-400.0,0.00041095,120]
[383767957,1757109263123,-406.08,0.00041095,120]
[383767958,1757109263132,-400.0,0.00041095,120]
[383767959,1757109263141,-1439.09,0.00041095,120]
[383767960,1757109263150,-475.57,0.00041095,120]
[383767961,1757109263159,-1300.45,0.00041095,120]
[383767962,1757109263168,-2688.71,0.00041095,118]
[383767963,1757109263177,-152.59,0.00041095,120]
[383767964,1757109263187,-530.86,0.00041095,120]
[383767965,1757109263196,-423.37,0.00041095,120]
[383767966,1757109263205,-425.64,0.00041095,120]
[383767967,1757109263214,-442.37,0.00041095,120]
[383767968,1757109263223,-400.0,0.00041095,120]
[383767969,1757109263232,-4723.5,0.00041095,120]
[383767970,1757109263242,-514.62,0.00041095,120]
[383767971,1757109263251,-446.4,0.00041095,120]
[383767972,1757109263260,-783.27,0.00041095,120]
[383767973,1757109263270,-425.55,0.00041095,120]
[383767974,1757109263279,-483.04,0.00041095,120]
[383767975,1757109263289,-440.05,0.00041095,120]
[383767976,1757109263298,-400.0,0.00041095,120]
[383767977,1757109263307,-599.12,0.00041095,120]
[383767978,1757109263316,-483.3,0.00041095,120]
[383767979,1757109263325,-677.0,0.00041095,120]
[383767980,1757109263335,-1085.17,0.00041095,120]
[383767981,1757109263344,-338.43,0.00041095,120]
[383767982,1757109263353,-3844.91,0.00041095,120]
[383767983,1757109263362,-1689.46,0.00041095,120]
[383767984,1757109263372,-421.08,0.00041095,120]
[383767985,1757109263381,-877.43,0.00041095,120]
[383767986,1757109263388,-400.0,0.00041095,120]
[383767987,1757109263397,-537.76,0.00041095,120]
[383767988,1757109263406,-436.27,0.00041095,120]
[383767989,1757109263416,-479.41,0.00041095,120]
[383767990,1757109263424,-400.0,0.00041095,120]
[383767991,1757109263434,-931.34,0.00041095,120]
[383767992,1757109263443,-2095.01,0.00041095,120]
[383767993,1757109263452,-434.12,0.00041095,120]
[383767994,1757109263462,-1265.08,0.00041095,120]
[383767995,1757109263471,-828.12,0.00041095,120]
[383767996,1757109263480,-490.29,0.00041095,120]
[383767997,1757109263490,-407.95,0.00041095,120]
[383767998,1757109263499,-1988.71,0.00041095,120]
[383767999,1757109263508,-445.3,0.00041095,120]
[383768000,1757109263518,-400.0,0.00041095,120]
[383768001,1757109263527,-484.37,0.00041095,120]
[383768002,1757109263538,-531.57,0.00041095,120]
[383768003,1757109263547,-428.34,0.00041095,120]
[383768004,1757109263556,-401.29,0.00041095,120]
[383768005,1757109263565,-720.58,0.00041095,120]
[383768006,1757109263575,-400.0,0.00041095,120]
[383768007,1757109263584,-400.0,0.00041095,120]
[383768008,1757109263593,-400.0,0.00041095,120]
[383768009,1757109263603,-400.0,0.00041095,120]
[383768010,1757109263613,-471.02,0.00041095,120]
[383768011,1757109263622,-2254.56,0.00041095,14]
[383768012,1757109263632,-786.84,0.00041095,120]
[383768013,1757109263641,-400.0,0.00041095,120]
[383768014,1757109263651,-1906.65,0.00041095,120]
[383768015,1757109263660,-3337.86,0.00041095,120]
[383768016,1757109263669,-404.67,0.00041095,120]
[383768017,1757109263679,-511.96,0.00041095,120]
[383768018,1757109263688,-911.18,0.00041095,120]
[383768019,1757109263698,-516.46,0.00041095,120]
[383768020,1757109263708,-488.47,0.00041095,120]
[383768021,1757109263717,-1977.28,0.00041095,120]
[383768022,1757109263726,-400.0,0.00041095,120]
[383768023,1757109263736,-457.95,0.00041095,120]
[383768024,1757109263745,-530.89,0.00041095,120]
[383768025,1757109263755,-527.02,0.00041095,120]
[383768026,1757109263764,-689.76,0.00041095,120]
[383768027,1757109263775,-697.63,0.00041095,120]
[383768028,1757109263916,-433.65,0.00041095,120]
[383768029,1757109263926,-419.06,0.00041095,120]
[383768030,1757109263935,-436.45,0.00041095,60]
[383768031,1757109263945,-6963.13,0.00041095,120]
[383768032,1757109263954,-289.73,0.00041095,120]
[383768033,1757109263964,-1232.95,0.00041095,120]
[383768034,1757109263973,-618.53,0.00041095,120]
[383768035,1757109263983,-500.0,0.00041096,10]
[383768036,1757109263992,-501.33673052,0.00041096,8]
[383768037,1757109264005,-408.18,0.00041096,120]
[383768038,1757109264014,-309.0,0.00041096,120]
[383768039,1757109264024,-500.0,0.00041096,30]
[383768040,1757109264033,-500.0,0.00041096,30]
[383768041,1757109264043,-500.0,0.00041096,30]
[383768042,1757109264052,-500.0,0.00041096,30]
[383768043,1757109264061,-500.0,0.00041096,30]
[383768044,1757109264071,-500.0,0.00041096,30]
[383768045,1757109264082,-500.0,0.00041096,30]
[383768046,1757109264092,-500.0,0.00041096,30]
[383768047,1757109264102,-500.0,0.00041096,30]
[383768048,1757109264111,-500.0,0.00041096,30]
[383768049,1757109264121,-500.0,0.00041096,30]
[383768050,1757109264130,-500.0,0.00041096,30]
[383768051,1757109264139,-500.0,0.00041096,30]
[383768052,1757109264148,-500.0,0.00041096,30]
[383768053,1757109264158,-500.0,0.00041096,30]
[383768054,1757109264168,-500.0,0.00041096,30]
[383768055,1757109264177,-500.0,0.00041096,30]
[383768056,1757109264186,-500.0,0.00041096,30]
[383768057,1757109264196,-500.0,0.00041096,30]
[383768058,1757109264205,-500.0,0.00041096,30]
[383768059,1757109264215,-500.0,0.00041096,30]
[383768060,1757109264224,-500.0,0.00041096,30]
[383768061,1757109264234,-500.0,0.00041096,30]
[383768062,1757109264243,-500.0,0.00041096,30]
[383768063,1757109264252,-500.0,0.00041096,30]
[383768064,1757109264261,-500.0,0.00041096,30]
[383768065,1757109264271,-500.0,0.00041096,30]
[383768066,1757109264280,-500.0,0.00041096,30]
[383768067,1757109264289,-500.0,0.00041096,30]
[383768068,1757109264298,-500.0,0.00041096,30]
[383768069,1757109264308,-500.0,0.00041096,30]
[383768070,1757109264317,-500.0,0.00041096,30]
[383768071,1757109264327,-500.0,0.00041096,30]
[383768072,1757109264336,-500.0,0.00041096,30]
[383768073,1757109264347,-500.0,0.00041096,30]
[383768074,1757109264356,-500.0,0.00041096,30]
[383768075,1757109264365,-500.0,0.00041096,30]
[383768076,1757109264374,-500.0,0.00041096,30]
[383768077,1757109264384,-500.0,0.00041096,30]
[383768078,1757109264393,-500.0,0.00041096,30]
[383768079,1757109264402,-500.0,0.00041096,30]
[383768080,1757109264411,-500.0,0.00041096,30]
[383768081,1757109264421,-500.0,0.00041096,30]
[383768082,1757109264431,-500.0,0.00041096,30]
[383768083,1757109264440,-500.0,0.00041096,30]
[383768084,1757109264450,-500.0,0.00041096,30]
[383768085,1757109264459,-500.0,0.00041096,30]
[383768086,1757109264468,-500.0,0.00041096,30]
[383768087,1757109264477,-500.0,0.00041096,30]
[383768088,1757109264487,-500.0,0.00041096,30]
[383768089,1757109264496,-500.0,0.00041096,30]
[383768090,1757109264505,-500.0,0.00041096,30]
[383768091,1757109264514,-500.0,0.00041096,30]
[383768092,1757109264525,-500.0,0.00041096,30]
[383768093,1757109264534,-500.0,0.00041096,30]
[383768094,1757109264543,-500.0,0.00041096,30]
[383768095,1757109264553,-500.0,0.00041096,30]
[383768096,1757109264563,-500.0,0.00041096,30]
[383768097,1757109264572,-500.0,0.00041096,30]
[383768098,1757109264582,-500.0,0.00041096,30]
[383768099,1757109264592,-500.0,0.00041096,30]
[383768100,1757109264601,-500.0,0.00041096,30]
[383768101,1757109264611,-500.0,0.00041096,30]
[383768102,1757109264620,-500.0,0.00041096,30]
[383768103,1757109264630,-500.0,0.00041096,30]
[383768104,1757109264640,-500.0,0.00041096,30]
[383768105,1757109264649,-500.0,0.00041096,30]
[383768106,1757109264659,-500.0,0.00041096,30]
[383768107,1757109264669,-500.0,0.00041096,30]
[383768108,1757109264679,-500.0,0.00041096,30]
[383768109,1757109264689,-500.0,0.00041096,30]
[383768110,1757109264699,-500.0,0.00041096,30]
[383768111,1757109264708,-389.0,0.00041096,30]
[383768112,1757109264718,-151.0,0.000411,120]
[383768113,1757109264728,-650.0,0.000411,2]
[383768114,1757109264737,-2131.7141062,0.000411,120]
[383768115,1757109264747,-2131.7141062,0.000411,120]
[383768116,1757109264757,-2131.7141062,0.000411,120]
[383768117,1757109264766,-2131.7141062,0.000411,120]
[383768118,1757109264776,-2131.7141062,0.000411,120]
[383768119,1757109264786,-2131.7141062,0.000411,120]
[383768120,1757109264795,-2131.7141062,0.000411,120]
[383768121,1757109264805,-2131.7141062,0.000411,120]
[383768122,1757109264814,-2131.7141062,0.000411,120]
[383768123,1757109264824,-2131.7141062,0.000411,120]
[383768124,1757109264833,-2131.7141062,0.000411,120]
[383768125,1757109264843,-2131.7141062,0.000411,120]
[383768126,1757109264853,-2131.7141062,0.000411,120]
[383768127,1757109264863,-2131.7141062,0.000411,120]
[383768128,1757109264872,-2131.7141062,0.000411,120]
[383768129,1757109264882,-2131.7141062,0.000411,120]
[383768130,1757109264892,-2131.7141062,0.000411,120]
[383768131,1757109264901,-2131.7141062,0.000411,120]
[383768132,1757109264911,-2131.7141062,0.000411,120]
[383768133,1757109264920,-2131.71,0.000411,120]
[383768134,1757109264930,-1776.1173827,0.000411,120]
[383768135,1757109264940,-1776.1173827,0.000411,120]
[383768136,1757109264949,-1776.1173827,0.000411,120]
[383768137,1757109264959,-1776.1173827,0.000411,120]
[383768138,1757109264968,-1776.1173827,0.000411,120]
[383768139,1757109264978,-1776.1173827,0.000411,120]
[383768140,1757109264987,-1776.1173827,0.000411,120]
[383768141,1757109264997,-1776.1173827,0.000411,120]
[383768142,1757109265012,-1776.1173827,0.000411,120]
[383768143,1757109265021,-1776.1173827,0.000411,120]
[383768144,1757109265031,-1776.1173827,0.000411,120]
[383768145,1757109265040,-1776.1173827,0.000411,120]
[383768146,1757109265049,-1776.1173827,0.000411,120]
[383768147,1757109265059,-1776.1173827,0.000411,120]
[383768148,1757109265069,-1776.1173827,0.000411,120]
[383768149,1757109265078,-1776.1173827,0.000411,120]
[383768150,1757109265088,-1776.1173827,0.000411,120]
[383768151,1757109265097,-1776.1173827,0.000411,120]
[383768152,1757109265106,-1776.1173827,0.000411,120]
[383768153,1757109265116,-1776.11,0.000411,120]
[383768154,1757109265126,-685.48934917,0.000411,120]
[383768155,1757109265135,-685.48934917,0.000411,120]
[383768156,1757109265144,-685.48934917,0.000411,120]
[383768157,1757109265154,-685.48934917,0.000411,120]
[383768158,1757109265164,-685.48934917,0.000411,120]
[383768159,1757109265173,-685.48934917,0.000411,120]
[383768160,1757109265183,-685.48934917,0.000411,120]
[383768161,1757109265193,-685.48934917,0.000411,120]
[383768162,1757109265203,-685.48934917,0.000411,120]
[383768163,1757109265212,-685.48934917,0.000411,120]
[383768164,1757109265222,-685.48934917,0.000411,120]
[383768165,1757109265231,-685.48934917,0.000411,120]
[383768166,1757109265241,-685.48934917,0.000411,120]
[383768167,1757109265250,-685.48934917,0.000411,120]
[383768168,1757109265259,-685.48934917,0.000411,120]
[383768169,1757109265269,-685.48934917,0.000411,120]
[383768170,1757109265279,-685.48934917,0.000411,120]
[383768171,1757109265289,-685.48934917,0.000411,120]
[383768172,1757109265298,-685.48934917,0.000411,120]
[383768173,1757109265308,-685.48,0.000411,120]
[383768174,1757109265318,-500.0,0.000411,2]
[383768175,1757109265327,-200.0,0.00041105,7]
[383768176,1757109265337,-200.0,0.00041105,7]
[383768177,1757109265346,-200.0,0.00041105,7]
[383768178,1757109265356,-200.0,0.00041106,7]
[383768179,1757109265365,-200.0,0.00041106,7]
[383768180,1757109265374,-200.0,0.00041106,7]
[383768181,1757109265384,-200.0,0.00041106,7]
[383768182,1757109265393,-200.0,0.00041107,7]
[383768183,1757109265403,-200.0,0.0004111,7]
[383768184,1757109265412,-200.0,0.00041117,7]
[383768185,1757109265423,-200.0,0.00041117,7]
[383768186,1757109265432,-200.0,0.00041117,7]
[383768187,1757109265442,-200.0,0.00041117,7]
[383768188,1757109265451,-391.0,0.0004114,30]
[383768189,1757109265461,-212.0,0.0004117,30]
[383768190,1757109265470,-200.0,0.0004117,2]
[383768191,1757109265479,-214.0,0.0004117,2]
[383768192,1757109265490,-299.79,0.00041232,29]
[383768193,1757109265500,-1178.96147,0.00041288,30]
[383768194,1757109265509,-150.0,0.00041361,120]
[383768195,1757109265519,-536.7615046,0.00041369,37]
[383768196,1757109265528,-339.30249,0.00041369,120]
[383768197,1757109265538,-634.468343,0.00041369,120]
[383768198,1757109265547,-400.0,0.00041369,120]
[383768199,1757109265558,-417.8,0.00041369,120]
[383768200,1757109265567,-400.0,0.00041369,120]
[383768201,1757109265577,-400.0,0.00041369,120]
[383768202,1757109265587,-400.0,0.00041369,120]
[383768203,1757109265597,-944.57,0.00041369,120]
[383768204,1757109265607,-400.0,0.00041369,120]
[383768205,1757109265616,-377.53434126,0.00041369,120]
[383768206,1757109265626,-846.07,0.00041369,120]
[383768207,1757109265636,-564.87,0.00041369,120]
[383768208,1757109265645,-765.62,0.00041369,120]
[383768209,1757109265655,-400.0,0.00041369,120]
[383768210,1757109265665,-433.33,0.00041369,120]
[383768211,1757109265675,-1155.55,0.00041369,120]
[383768212,1757109265684,-405.24,0.00041369,120]
[383768213,1757109265694,-678.29,0.00041369,120]
[383768214,1757109265703,-414.11,0.00041369,120]
[383768215,1757109265713,-413.3,0.00041369,120]
[383768216,1757109265723,-418.03,0.00041369,120]
[383768217,1757109265732,-420.25,0.00041369,120]
[383768218,1757109265742,-437.75,0.00041369,120]
[383768219,1757109265752,-506.4,0.00041369,120]
[383768220,1757109265762,-437.87,0.00041369,120]
[383768221,1757109265772,-421.08,0.00041369,120]
[383768222,1757109265782,-451.2,0.00041369,120]
[383768223,1757109265792,-507.92,0.00041369,120]
[383768225,1757109265802,-461.35,0.00041369,120]
[383768226,1757109265811,-458.84,0.00041369,120]
[383768227,1757109265821,-428.49,0.00041369,120]
[383768228,1757109265831,-1054.45,0.00041369,120]
[383768229,1757109265841,-409.45,0.00041369,120]
[383768230,1757109265850,-400.0,0.00041369,120]
[383768231,1757109265860,-542.29,0.00041369,120]
[383768232,1757109265870,-508.21,0.00041369,120]
[383768233,1757109265880,-400.0,0.00041369,120]
[383768234,1757109265890,-493.63,0.00041369,120]
[383768235,1757109265900,-425.32,0.00041369,120]
[383768236,1757109265910,-518.21,0.00041369,120]
[383768237,1757109265920,-449.3,0.00041369,120]
[383768238,1757109265930,-510.04,0.00041369,120]
[383768239,1757109265939,-414.48,0.00041369,120]
[383768240,1757109265949,-970.87,0.00041369,120]
[383768241,1757109265959,-490.71,0.00041369,120]
[383768242,1757109265968,-436.72,0.00041369,120]
[383768243,1757109265978,-414.95,0.00041369,120]
[383768244,1757109265987,-447.82,0.00041369,120]
[383768245,1757109265997,-647.6,0.00041369,120]
[383768246,1757109266011,-425.6,0.00041369,120]
[383768247,1757109266020,-490.57,0.00041369,120]
[383768248,1757109266031,-641.44,0.00041369,120]
[383768249,1757109266040,-403.59,0.00041369,120]
[383768250,1757109266377,-419.23,0.00041369,120]
[383768251,1757109266392,-401.8,0.00041369,120]
[383768252,1757109266402,-548.51,0.00041369,120]
[383768253,1757109266412,-452.54,0.00041369,120]
[383768254,1757109266421,-440.39,0.00041369,120]
[383768255,1757109266431,-679.14,0.00041369,120]
[383768256,1757109266440,-433.62,0.00041369,120]
[383768257,1757109266450,-400.0,0.00041369,120]
[383768258,1757109266460,-589.1,0.00041369,120]
[383768259,1757109266470,-551.08,0.00041369,120]
[383768260,1757109266480,-415.82,0.00041369,120]
[383768261,1757109266490,-576.99,0.00041369,120]
[383768262,1757109266500,-455.37,0.00041369,120]
[383768263,1757109266510,-410.32,0.00041369,120]
[383768264,1757109266520,-497.74,0.00041369,120]
[383768265,1757109266530,-498.14,0.00041369,120]
[383768266,1757109266540,-878.01,0.00041369,120]
[383768267,1757109266550,-1227.44,0.00041369,120]
[383768268,1757109266560,-396.75,0.00041369,120]
[383768269,1757109266569,-601.8,0.00041369,120]
[383768270,1757109266580,-404.89,0.00041369,120]
[383768271,1757109266589,-414.05,0.00041369,120]
[383768272,1757109266600,-562.13,0.00041369,120]
[383768273,1757109266610,-400.0,0.00041369,120]
[383768274,1757109266620,-230.48543527,0.00041369,60]
[383768275,1757109266630,-457.02,0.00041369,120]
[383768276,1757109266640,-519.36,0.00041369,120]
[383768277,1757109266650,-521.97951152,0.00041369,120]
[383768278,1757109266660,-464.19,0.00041369,120]
[383768279,1757109266670,-509.57,0.00041369,120]
[383768280,1757109266680,-400.0,0.00041369,120]
[383768281,1757109266690,-400.0,0.00041369,120]
[383768282,1757109266701,-536.82,0.00041369,120]
[383768283,1757109266711,-456.25,0.00041369,120]
[383768284,1757109266721,-400.0,0.00041369,120]
[383768285,1757109266731,-400.0,0.00041369,120]
[383768286,1757109266740,-1325.01,0.00041369,120]
[383768287,1757109266750,-662.17,0.00041369,120]
[383768288,1757109266759,-475.33,0.00041369,120]
[383768289,1757109266769,-580.54,0.00041369,120]
[383768290,1757109266778,-468.08,0.00041369,120]
[383768291,1757109266788,-504.21,0.00041369,30]
[383768292,1757109266797,-470.77,0.00041369,120]
[383768293,1757109266807,-417.63,0.00041369,120]
[383768294,1757109266817,-447.31,0.00041369,120]
[383768295,1757109266827,-406.01,0.00041369,120]
[383768296,1757109266837,-560.94,0.00041369,120]
[383768297,1757109266847,-671.39,0.00041369,120]
[383768298,1757109266856,-660.54,0.00041369,120]
[383768299,1757109266866,-505.54,0.00041369,120]
[383768300,1757109266876,-400.0,0.00041369,2]
[383768301,1757109266886,-228.18021665,0.00041369,120]
[383768302,1757109266896,-493.62,0.00041369,120]
[383768303,1757109266906,-400.0,0.00041369,120]
[383768304,1757109266915,-556.02,0.00041369,120]
[383768305,1757109266925,-514.72,0.00041369,120]
[383768306,1757109266935,-456.07,0.00041369,120]
[383768307,1757109266945,-1553.38,0.00041369,120]
[383768308,1757109266955,-737.77,0.00041369,120]
[383768309,1757109266964,-162.95371452,0.00041369,120]
[383768310,1757109266974,-521.95,0.00041369,120]
[383768311,1757109266983,-418.68,0.00041369,120]
[383768312,1757109266993,-583.81,0.00041369,120]
[383768313,1757109267005,-498.62,0.00041369,120]
[383768314,1757109267014,-430.27,0.00041369,120]
[383768315,1757109267024,-579.68,0.00041369,120]